fUST/lending_fUST_20251206
["ID","MTS","AMOUNT","RATE_DAILY","PERIOD"]
[396469616,1764977446424,-500.0,0.00016438,2]
[396469617,1764977446433,-500.0,0.00016438,2]
[396469618,1764977446447,-500.0,0.00016438,2]
[396469619,1764977446457,-500.0,0.00016438,2]
[396469620,1764977446467,-500.0,0.00016438,2]
[396469621,1764977446476,-500.0,0.00016438,2]
[396469622,1764977446485,-500.0,0.00016438,2]
[396469623,1764977446495,-500.0,0.00016438,2]
[396469624,1764977446506,-500.0,0.00016438,2]
[396469625,1764977446574,-500.0,0.00016438,2]
[396469626,1764977446583,-500.0,0.00016438,2]
[396469627,1764977446592,-500.0,0.00016438,2]
[396469628,1764977446601,-151.24,0.00016438,2]
[396469629,1764977446611,-1172.82,0.00016438,2]
[396469630,1764977446620,-500.0,0.00016438,2]
[396469631,1764977446629,-500.0,0.00016438,2]
[396469632,1764977446638,-500.0,0.00016438,2]
[396469633,1764977446647,-500.0,0.00016438,2]
[396469634,1764977446656,-953.97,0.00016438,2]
[396469635,1764977446665,-552.83837833,0.00016438,2]
[396469636,1764977446675,-500.0,0.00016438,2]
[396469637,1764977446684,-500.0,0.00016438,2]
[396469638,1764977446695,-500.0,0.00016438,2]
[396469639,1764977446704,-508.31,0.00016438,2]
[396469640,1764977446713,-1281.15,0.00016438,2]
[396469641,1764977446722,-571.94,0.00016438,2]
[396469642,1764977446731,-500.0,0.00016438,2]
[396469643,1764977446740,-158.2271235,0.00016438,2]
[396469644,1764977446748,-520.57,0.00016438,2]
[396469645,1764977446758,-500.0,0.00016438,2]
[396469646,1764977446768,-500.0,0.00016438,2]
[396469647,1764977446779,-792.48,0.00016438,2]
[396469648,1764977446788,-500.0,0.00016438,2]
[396469649,1764977446798,-1988.07,0.00016438,2]
[396469650,1764977446807,-533.6,0.00016438,2]
[396469651,1764977446817,-583.39,0.00016438,2]
[396469652,1764977446826,-500.0,0.00016438,2]
[396469653,1764977446835,-500.0,0.00016438,2]
[396469654,1764977446846,-500.0,0.00016438,2]
[396469655,1764977446855,-500.0,0.00016438,2]
[396469656,1764977446865,-500.0,0.00016438,2]
[396469657,1764977446875,-500.0,0.00016438,2]
[396469658,1764977446886,-500.0,0.00016438,2]
[396469659,1764977446896,-658.48,0.00016438,2]
[396469660,1764977446905,-500.0,0.00016438,2]
[396469661,1764977446914,-500.0,0.00016438,2]
[396469662,1764977446924,-713.5,0.00016438,2]
[396469663,1764977446933,-500.0,0.00016438,2]
[396469664,1764977446942,-500.0,0.00016438,2]
[396469665,1764977446953,-500.0,0.00016438,2]
[396469666,1764977446962,-500.0,0.00016438,2]
[396469667,1764977446972,-500.0,0.00016438,2]
[396469668,1764977446981,-500.0,0.00016438,2]
[396469669,1764977446991,-500.0,0.00016438,2]
[396469670,1764977447000,-500.0,0.00016438,2]
[396469671,1764977447010,-500.0,0.00016438,2]
[396469672,1764977447019,-500.0,0.00016438,2]
[396469673,1764977447028,-500.0,0.00016438,2]
[396469674,1764977447038,-500.0,0.00016438,2]
[396469675,1764977447047,-628.88,0.00016438,2]
[396469676,1764977447056,-500.0,0.00016438,2]
[396469677,1764977447065,-500.0,0.00016438,2]
[396469678,1764977447075,-500.0,0.00016438,2]
[396469679,1764977447084,-500.0,0.00016438,2]
[396469680,1764977447094,-500.0,0.00016438,2]
[396469681,1764977447103,-500.0,0.00016438,2]
[396469682,1764977447112,-500.0,0.00016438,2]
[396469683,1764977447121,-500.0,0.00016438,2]
[396469684,1764977447130,-500.0,0.00016438,2]
[396469685,1764977447139,-500.0,0.00016438,2]
[396469686,1764977447149,-500.0,0.00016438,2]
[396469687,1764977447158,-500.0,0.00016438,2]
[396469688,1764977447167,-500.0,0.00016438,2]
[396469689,1764977447177,-500.0,0.00016438,2]
[396469690,1764977447186,-500.0,0.00016438,2]
[396469691,1764977447196,-151.0,0.00016438,2]
[396469692,1764977447205,-151.0,0.00016438,2]
[396469693,1764977447213,-151.0,0.00016438,2]
[396469694,1764977447222,-151.0,0.00016438,2]
[396469695,1764977447231,-151.0,0.00016438,2]
[396469696,1764977447239,-151.0,0.00016438,2]
[396469697,1764977447249,-151.0,0.00016438,2]
[396469698,1764977447258,-151.0,0.00016438,2]
[396469699,1764977447266,-196.466286,0.00016438,2]
[396469700,1764977447275,-500.0,0.00016438,2]
[396469701,1764977447284,-500.0,0.00016438,2]
[396469702,1764977447293,-500.0,0.00016438,2]
[396469703,1764977447302,-500.0,0.00016438,2]
[396469704,1764977447311,-500.0,0.00016438,2]
[396469705,1764977447320,-500.0,0.00016438,2]
[396469706,1764977447329,-500.0,0.00016438,2]
[396469707,1764977447337,-500.0,0.00016438,2]
[396469708,1764977447346,-500.0,0.00016438,2]
[396469709,1764977447355,-500.0,0.00016438,2]
[396469710,1764977447369,-500.0,0.00016438,2]
[396469711,1764977447378,-500.0,0.00016438,2]
[396469712,1764977447386,-1146.35,0.00016438,2]
[396469713,1764977447396,-500.0,0.00016438,2]
[396469714,1764977447407,-500.0,0.00016438,2]
[396469715,1764977447416,-500.0,0.00016438,2]
[396469716,1764977447426,-500.0,0.00016438,2]
[396469717,1764977447435,-552.82,0.00016438,2]
[396469718,1764977447445,-500.0,0.00016438,2]
[396469719,1764977447455,-500.0,0.00016438,2]
[396469720,1764977447464,-500.0,0.00016438,2]
[396469721,1764977447473,-500.0,0.00016438,2]
[396469722,1764977447482,-500.0,0.00016438,2]
[396469723,1764977447492,-500.0,0.00016438,2]
[396469724,1764977447501,-500.0,0.00016438,2]
[396469725,1764977447510,-898.65,0.00016438,2]
[396469726,1764977447521,-500.0,0.00016438,2]
[396469727,1764977447532,-719.36,0.00016438,2]
[396469728,1764977447542,-500.0,0.00016438,2]
[396469729,1764977447552,-500.0,0.00016438,2]
[396469730,1764977447563,-500.0,0.00016438,2]
[396469731,1764977447573,-500.0,0.00016438,2]
[396469732,1764977447582,-562.53022814,0.00016438,2]
[396469733,1764977447592,-645.08,0.00016438,2]
[396469734,1764977447601,-500.0,0.00016438,2]
[396469735,1764977447610,-500.0,0.00016438,2]
[396469736,1764977447619,-1057.16,0.00016438,2]
[396469737,1764977447628,-500.0,0.00016438,2]
[396469738,1764977447638,-500.0,0.00016438,2]
[396469739,1764977447648,-500.0,0.00016438,2]
[396469740,1764977447659,-500.0,0.00016438,2]
[396469741,1764977447670,-500.0,0.00016438,2]
[396469742,1764977447679,-500.0,0.00016438,2]
[396469743,1764977447689,-500.0,0.00016438,2]
[396469744,1764977447698,-500.0,0.00016438,2]
[396469745,1764977447707,-500.0,0.00016438,2]
[396469746,1764977447716,-500.0,0.00016438,2]
[396469747,1764977447725,-628.73330733,0.00016438,2]
[396469748,1764977447734,-612.32,0.00016438,2]
[396469749,1764977447743,-699.98,0.00016438,2]
[396469750,1764977447753,-196.538304,0.00016438,2]
[396469751,1764977447763,-500.0,0.00016438,2]
[396469752,1764977447772,-962.64,0.00016438,2]
[396469753,1764977447781,-607.73,0.00016438,2]
[396469754,1764977447790,-1235.18,0.00016438,2]
[396469755,1764977447800,-1568.89,0.00016438,2]
[396469756,1764977447809,-500.0,0.00016438,2]
[396469757,1764977447818,-2620.44,0.00016438,2]
[396469758,1764977447827,-500.0,0.00016438,2]
[396469759,1764977447836,-500.0,0.00016438,2]
[396469760,1764977447845,-500.0,0.00016438,2]
[396469761,1764977447855,-595.35,0.00016438,2]
[396469762,1764977447864,-500.0,0.00016438,2]
[396469763,1764977447873,-651.44,0.00016438,2]
[396469764,1764977447882,-500.0,0.00016438,2]
[396469765,1764977447892,-500.0,0.00016438,2]
[396469766,1764977447901,-500.0,0.00016438,2]
[396469767,1764977447911,-500.0,0.00016438,2]
[396469768,1764977447920,-500.0,0.00016438,2]
[396469769,1764977447929,-642.81,0.00016438,2]
[396469770,1764977447939,-500.0,0.00016438,2]
[396469771,1764977447949,-500.0,0.00016438,2]
[396469772,1764977447958,-500.0,0.00016438,2]
[396469773,1764977447967,-500.0,0.00016438,2]
[396469774,1764977447977,-618.0,0.00016438,2]
[396469775,1764977447986,-1515.57,0.00016438,2]
[396469776,1764977447996,-746.75,0.00016438,2]
[396469777,1764977448005,-500.0,0.00016438,2]
[396469778,1764977448014,-500.0,0.00016438,2]
[396469779,1764977448023,-809.79,0.00016438,2]
[396469780,1764977448032,-500.0,0.00016438,2]
[396469781,1764977448041,-500.0,0.00016438,2]
[396469782,1764977448050,-500.0,0.00016438,2]
[396469783,1764977448059,-1222.96,0.00016438,2]
[396469784,1764977448068,-500.0,0.00016438,2]
[396469785,1764977448078,-500.0,0.00016438,2]
[396469786,1764977448087,-500.0,0.00016438,2]
[396469787,1764977448096,-500.0,0.00016438,2]
[396469788,1764977448106,-763.27,0.00016438,2]
[396469789,1764977448115,-500.0,0.00016438,2]
[396469790,1764977448124,-500.0,0.00016438,2]
[396469791,1764977448133,-500.0,0.00016438,2]
[396469792,1764977448142,-500.0,0.00016438,2]
[396469793,1764977448151,-500.0,0.00016438,2]
[396469794,1764977448160,-500.0,0.00016438,2]
[396469795,1764977448169,-1284.13,0.00016438,2]
[396469796,1764977448179,-500.0,0.00016438,2]
[396469797,1764977448188,-500.0,0.00016438,2]
[396469798,1764977448197,-500.0,0.00016438,2]
[396469799,1764977448207,-500.0,0.00016438,2]
[396469800,1764977448216,-500.0,0.00016438,2]
[396469801,1764977448225,-505.13,0.00016438,2]
[396469802,1764977448234,-500.0,0.00016438,2]
[396469803,1764977448243,-239.8,0.00016438,2]
[396469804,1764977448252,-500.0,0.00016438,2]
[396469805,1764977448261,-540.03,0.00016438,2]
[396469806,1764977448270,-500.0,0.00016438,2]
[396469807,1764977448279,-2502.52,0.00016438,2]
[396469808,1764977448289,-500.0,0.00016438,2]
[396469809,1764977448298,-500.0,0.00016438,2]
[396469810,1764977448307,-500.0,0.00016438,2]
[396469811,1764977448316,-500.0,0.00016438,2]
[396469812,1764977448325,-1094.94,0.00016438,2]
[396469813,1764977448334,-500.0,0.00016438,2]
[396469814,1764977448344,-500.0,0.00016438,2]
[396469815,1764977448354,-500.0,0.00016438,2]
[396469816,1764977448366,-500.0,0.00016438,2]
[396469817,1764977448375,-500.0,0.00016438,2]
[396469818,1764977448384,-500.0,0.00016438,2]
[396469819,1764977448393,-500.0,0.00016438,2]
[396469820,1764977448402,-507.38,0.00016438,2]
[396469821,1764977448413,-2778.71,0.00016438,2]
[396469822,1764977448422,-500.0,0.00016438,2]
[396469823,1764977448431,-542.06,0.00016438,2]
[396469824,1764977448443,-500.0,0.00016438,2]
[396469825,1764977448452,-2162.68,0.00016438,2]
[396469826,1764977448462,-1027.42,0.00016438,2]
[396469827,1764977448471,-872.12,0.00016438,2]
[396469828,1764977448480,-500.0,0.00016438,2]
[396469829,1764977448489,-500.0,0.00016438,2]
[396469830,1764977448498,-500.0,0.00016438,2]
[396469831,1764977448507,-850.89,0.00016438,2]
[396469832,1764977448517,-500.0,0.00016438,2]
[396469833,1764977448526,-500.0,0.00016438,2]
[396469834,1764977448535,-500.0,0.00016438,2]
[396469835,1764977448544,-500.0,0.00016438,2]
[396469836,1764977448554,-500.0,0.00016438,2]
[396469837,1764977448563,-500.0,0.00016438,2]
[396469838,1764977448572,-500.0,0.00016438,2]
[396469839,1764977448581,-1115.05,0.00016438,2]
[396469840,1764977448591,-500.0,0.00016438,2]
[396469841,1764977448600,-866.93,0.00016438,2]
[396469842,1764977448610,-400.48209186,0.00016438,2]
[396469843,1764977448619,-500.0,0.00016438,2]
[396469844,1764977448628,-500.0,0.00016438,2]
[396469845,1764977448637,-804.44,0.00016438,2]
[396469846,1764977448646,-716.42,0.00016438,2]
[396469847,1764977448655,-500.0,0.00016438,2]
[396469848,1764977448664,-1046.92,0.00016438,2]
[396469849,1764977448674,-500.0,0.00016438,2]
[396469850,1764977448683,-500.0,0.00016438,2]
[396469851,1764977448694,-1364.25,0.00016438,2]
[396469852,1764977448704,-500.0,0.00016438,2]
[396469853,1764977448714,-500.0,0.00016438,2]
[396469854,1764977448725,-500.0,0.00016438,2]
[396469855,1764977448735,-500.0,0.00016438,2]
[396469856,1764977448744,-500.0,0.00016438,2]
[396469857,1764977448753,-2752.35,0.00016438,2]
[396469858,1764977448763,-500.0,0.00016438,2]
[396469859,1764977448781,-1342.26,0.00016438,2]
[396469860,1764977448793,-1890.13,0.00016438,2]
[396469861,1764977448802,-500.0,0.00016438,2]
[396469862,1764977448812,-3523.87,0.00016438,2]
[396469863,1764977448821,-500.0,0.00016438,2]
[396469864,1764977448832,-719.4,0.00016438,2]
[396469865,1764977448841,-500.0,0.00016438,2]
[396469866,1764977448851,-989.71,0.00016438,2]
[396469867,1764977448861,-500.0,0.00016438,2]
[396469868,1764977448870,-500.0,0.00016438,2]
[396469869,1764977448879,-500.0,0.00016438,2]
[396469870,1764977448889,-500.0,0.00016438,2]
[396469871,1764977448898,-716.51,0.00016438,2]
[396469872,1764977448909,-500.0,0.00016438,2]
[396469873,1764977448919,-1750.43,0.00016438,2]
[396469874,1764977448928,-500.0,0.00016438,2]
[396469875,1764977448938,-500.0,0.00016438,2]
[396469876,1764977448947,-953.7,0.00016438,2]
[396469877,1764977448957,-500.0,0.00016438,2]
[396469878,1764977448967,-500.0,0.00016438,2]
[396469879,1764977448976,-2595.03,0.00016438,2]
[396469880,1764977448985,-616.79,0.00016438,2]
[396469881,1764977448996,-500.0,0.00016438,2]
[396469882,1764977449007,-500.0,0.00016438,2]
[396469883,1764977449017,-500.0,0.00016438,2]
[396469884,1764977449027,-500.0,0.00016438,2]
[396469885,1764977449036,-500.0,0.00016438,2]
[396469886,1764977449046,-500.0,0.00016438,2]
[396469887,1764977449055,-500.0,0.00016438,2]
[396469888,1764977449065,-500.0,0.00016438,2]
[396469889,1764977449074,-500.0,0.00016438,2]
[396469890,1764977449083,-500.0,0.00016438,2]
[396469891,1764977449096,-500.0,0.00016438,2]
[396469892,1764977449106,-500.0,0.00016438,2]
[396469893,1764977449115,-500.0,0.00016438,2]
[396469894,1764977449125,-500.0,0.00016438,2]
[396469895,1764977449142,-500.0,0.00016438,2]
[396469896,1764977449151,-774.24,0.00016438,2]
[396469897,1764977449161,-500.0,0.00016438,2]
[396469898,1764977449171,-500.0,0.00016438,2]
[396469899,1764977449180,-4362.29,0.00016438,2]
[396469900,1764977449189,-650.21,0.00016438,2]
[396469901,1764977449199,-500.0,0.00016438,2]
[396469902,1764977449208,-1268.15,0.00016438,2]
[396469903,1764977449218,-7825.74,0.00016438,2]
[396469904,1764977449227,-500.0,0.00016438,2]
[396469905,1764977449237,-1806.52,0.00016438,2]
[396469906,1764977449246,-521.3,0.00016438,2]
[396469907,1764977449256,-796.27,0.00016438,2]
[396469908,1764977449266,-1208.16,0.00016438,2]
[396469909,1764977449275,-832.46,0.00016438,2]
[396469910,1764977449284,-500.0,0.00016438,2]
[396469911,1764977449294,-701.28,0.00016438,2]
[396469912,1764977449303,-582.61,0.00016438,2]
[396469913,1764977449313,-500.0,0.00016438,2]
[396469914,1764977449322,-500.0,0.00016438,2]
[396469915,1764977449331,-500.0,0.00016438,2]
[396469916,1764977449341,-500.0,0.00016438,2]
[396469917,1764977449351,-500.0,0.00016438,2]
[396469918,1764977449361,-500.0,0.00016438,2]
[396469919,1764977449376,-1147.42,0.00016438,2]
[396469920,1764977449386,-1072.16,0.00016438,2]
[396469921,1764977449396,-500.0,0.00016438,2]
[396469922,1764977449408,-2680.06,0.00016438,2]
[396469923,1764977449419,-734.18,0.00016438,2]
[396469924,1764977449429,-6699.51,0.00016438,2]
[396469925,1764977449439,-500.0,0.00016438,2]
[396469926,1764977449452,-500.0,0.00016438,2]
[396469927,1764977449461,-384.42280435,0.00016438,2]
[396469928,1764977449470,-500.0,0.00016438,2]
[396469929,1764977449482,-500.0,0.00016438,2]
[396469930,1764977449491,-500.0,0.00016438,2]
[396469931,1764977449502,-747.01,0.00016438,2]
[396469932,1764977449512,-500.0,0.00016438,2]
[396469933,1764977449521,-500.0,0.00016438,2]
[396469934,1764977449530,-500.0,0.00016438,2]
[396469935,1764977449539,-500.0,0.00016438,2]
[396469936,1764977449548,-500.0,0.00016438,2]
[396469937,1764977449558,-979.82,0.00016438,2]
[396469938,1764977449567,-500.0,0.00016438,2]
[396469939,1764977449576,-4242.28,0.00016438,2]
[396469940,1764977449585,-928.92,0.00016438,2]
[396469941,1764977449595,-500.0,0.00016438,2]
[396469942,1764977449604,-500.0,0.00016438,2]
[396469943,1764977449613,-2743.39,0.00016438,2]
[396469944,1764977449626,-500.0,0.00016438,2]
[396469945,1764977449636,-500.0,0.00016438,2]
[396469946,1764977449645,-1068.24,0.00016438,2]
[396469947,1764977449654,-850.22,0.00016438,2]
[396469948,1764977449665,-500.0,0.00016438,2]
[396469949,1764977449673,-500.0,0.00016438,2]
[396469950,1764977449683,-626.12,0.00016438,2]
[396469951,1764977449693,-1958.94,0.00016438,2]
[396469952,1764977449702,-500.0,0.00016438,2]
[396469953,1764977449711,-584.83,0.00016438,2]
[396469954,1764977449720,-500.0,0.00016438,2]
[396469955,1764977449729,-744.32,0.00016438,2]
[396469956,1764977449739,-500.0,0.00016438,2]
[396469957,1764977449748,-500.0,0.00016438,2]
[396469958,1764977449757,-500.0,0.00016438,2]
[396469959,1764977449766,-500.0,0.00016438,2]
[396469960,1764977449776,-1742.77,0.00016438,2]
[396469961,1764977449785,-500.0,0.00016438,2]
[396469962,1764977449794,-752.54,0.00016438,2]
[396469963,1764977449803,-4165.45,0.00016438,2]
[396469964,1764977449813,-500.0,0.00016438,2]
[396469965,1764977449823,-500.0,0.00016438,2]
[396469966,1764977449833,-500.0,0.00016438,2]
[396469967,1764977449843,-2356.26,0.00016438,2]
[396469968,1764977449854,-500.0,0.00016438,2]
[396469969,1764977449863,-1624.57,0.00016438,2]
[396469970,1764977449873,-500.0,0.00016438,2]
[396469971,1764977449882,-4644.67,0.00016438,2]
[396469972,1764977449891,-500.0,0.00016438,2]
[396469973,1764977449900,-500.0,0.00016438,2]
[396469974,1764977449910,-5447.87,0.00016438,2]
[396469975,1764977449920,-500.0,0.00016438,2]
[396469976,1764977449929,-510.25,0.00016438,2]
[396469977,1764977449939,-500.0,0.00016438,2]
[396469978,1764977449948,-500.0,0.00016438,2]
[396469979,1764977449957,-500.0,0.00016438,2]
[396469980,1764977449967,-619.55,0.00016438,2]
[396469981,1764977449976,-7955.62,0.00016438,2]
[396469982,1764977449986,-500.0,0.00016438,2]
[396469983,1764977449996,-3349.39,0.00016438,2]
[396469984,1764977450005,-1206.53,0.00016438,2]
[396469985,1764977450015,-685.22,0.00016438,2]
[396469986,1764977450024,-794.12,0.00016438,2]
[396469987,1764977450034,-13228.71,0.00016438,2]
[396469988,1764977450043,-500.0,0.00016438,2]
[396469989,1764977450053,-500.0,0.00016438,2]
[396469990,1764977450062,-500.0,0.00016438,2]
[396469991,1764977450071,-500.0,0.00016438,2]
[396469992,1764977450081,-6003.7,0.00016438,2]
[396469993,1764977450090,-500.0,0.00016438,2]
[396469994,1764977450101,-828.01,0.00016438,2]
[396469995,1764977450110,-500.0,0.00016438,2]
[396469996,1764977450119,-870.26,0.00016438,2]
[396469997,1764977450129,-500.0,0.00016438,2]
[396469998,1764977450138,-500.0,0.00016438,2]
[396469999,1764977450147,-500.0,0.00016438,2]
[396470000,1764977450156,-500.0,0.00016438,2]
[396470001,1764977450166,-1061.87,0.00016438,2]
[396470002,1764977450175,-597.71,0.00016438,2]
[396470003,1764977450185,-500.0,0.00016438,2]
[396470004,1764977450195,-500.0,0.00016438,2]
[396470005,1764977450205,-500.0,0.00016438,2]
[396470006,1764977450215,-500.0,0.00016438,2]
[396470007,1764977450226,-500.0,0.00016438,2]
[396470008,1764977450237,-500.0,0.00016438,2]
[396470009,1764977450248,-500.0,0.00016438,2]
[396470010,1764977450259,-1223.15,0.00016438,2]
[396470011,1764977450269,-569.6,0.00016438,2]
[396470012,1764977450279,-500.0,0.00016438,2]
[396470013,1764977450290,-500.0,0.00016438,2]
[396470014,1764977450305,-826.23,0.00016438,2]
[396470015,1764977450315,-500.0,0.00016438,2]
[396470016,1764977450324,-500.0,0.00016438,2]
[396470017,1764977450334,-2259.28,0.00016438,2]
[396470018,1764977450343,-500.0,0.00016438,2]
[396470019,1764977450354,-1100.91,0.00016438,2]
[396470020,1764977450367,-580.03,0.00016438,2]
[396470021,1764977450377,-2098.0,0.00016438,2]
[396470022,1764977450389,-500.0,0.00016438,2]
[396470023,1764977450400,-500.0,0.00016438,2]
[396470024,1764977450412,-500.0,0.00016438,2]
[396470025,1764977450422,-500.0,0.00016438,2]
[396470026,1764977450433,-602.07,0.00016438,2]
[396470027,1764977450449,-657.43,0.00016438,2]
[396470028,1764977450461,-530.24,0.00016438,2]
[396470029,1764977450472,-1180.47,0.00016438,2]
[396470030,1764977450484,-500.0,0.00016438,2]
[396470031,1764977450494,-500.0,0.00016438,2]
[396470032,1764977450506,-2505.45,0.00016438,2]
[396470033,1764977450516,-652.97,0.00016438,2]
[396470034,1764977450528,-500.0,0.00016438,2]
[396470035,1764977450538,-500.0,0.00016438,2]
[396470036,1764977450547,-764.51,0.00016438,2]
[396470037,1764977450557,-563.72,0.00016438,2]
[396470038,1764977450566,-154.26299529,0.00016438,2]
[396470039,1764977450576,-329.699357,0.00016438,2]
[396470040,1764977450586,-329.699357,0.00016438,2]
[396470041,1764977450595,-329.699357,0.00016438,2]
[396470042,1764977450605,-329.699357,0.00016438,2]
[396470043,1764977450615,-329.699357,0.00016438,2]
[396470044,1764977450624,-329.699357,0.00016438,2]
[396470045,1764977450633,-329.699357,0.00016438,2]
[396470046,1764977450643,-329.699357,0.00016438,2]
[396470047,1764977450652,-329.699357,0.00016438,2]
[396470048,1764977450662,-329.699357,0.00016438,2]
[396470049,1764977450671,-329.699357,0.00016438,2]
[396470050,1764977450680,-329.699357,0.00016438,2]
[396470051,1764977450872,-3000.0,0.00016438,2]
[396470052,1764977450894,-3000.0,0.00016438,2]
[396470053,1764977450904,-3000.0,0.00016438,2]
[396470054,1764977450916,-258.91777499,0.00016438,2]
[396470055,1764977450926,-199.79702532,0.0001644,2]
[396470056,1764977450935,-228.33945751,0.0001644,2]
[396470057,1764977450944,-2773.56790519,0.00016509,2]
[396470058,1764977450953,-500.0,0.0001651,2]
[396470059,1764977450963,-3276.68572561,0.00016514,2]
[396470060,1764977450972,-329.699357,0.0001656,2]
[396470061,1764977450981,-329.699357,0.0001656,2]
[396470062,1764977450990,-329.699357,0.0001656,2]
[396470063,1764977450999,-329.699357,0.0001656,2]
[396470064,1764977451009,-3500.0,0.0001656,2]
[396470065,1764977451018,-356.42362196,0.00016573,2]
[396470066,1764977451028,-239.545836,0.00016649,2]
[396470067,1764977451037,-800.0,0.00016707,2]
[396470068,1764977451047,-250.0,0.00016711,2]
[396470069,1764977451055,-500.0,0.00016712,2]
[396470070,1764977451065,-500.0,0.00016712,2]
[396470071,1764977451075,-500.0,0.00016712,2]
[396470072,1764977451084,-500.0,0.00016712,2]
[396470073,1764977451094,-500.0,0.00016712,2]
[396470074,1764977451104,-500.0,0.00016712,2]
[396470075,1764977451115,-500.0,0.00016712,2]
[396470076,1764977451124,-500.0,0.00016712,2]
[396470077,1764977451133,-500.0,0.00016712,2]
[396470078,1764977451143,-500.0,0.00016712,2]
[396470079,1764977451152,-728.37,0.00016712,2]
[396470080,1764977451161,-500.0,0.00016712,2]
[396470081,1764977451170,-500.0,0.00016712,2]
[396470082,1764977451179,-500.0,0.00016712,2]
[396470083,1764977451188,-500.0,0.00016712,2]
[396470084,1764977451198,-952.78,0.00016712,2]
[396470085,1764977451207,-755.8,0.00016712,2]
[396470086,1764977451216,-500.0,0.00016712,2]
[396470087,1764977451225,-500.0,0.00016712,2]
[396470088,1764977451235,-500.0,0.00016712,2]
[396470089,1764977451244,-500.0,0.00016712,2]
[396470090,1764977451253,-500.0,0.00016712,2]
[396470091,1764977451262,-500.0,0.00016712,2]
[396470092,1764977451271,-652.53,0.00016712,2]
[396470093,1764977451280,-500.0,0.00016712,2]
[396470094,1764977451293,-500.0,0.00016712,2]
[396470095,1764977451303,-500.0,0.00016712,2]
[396470096,1764977451313,-500.0,0.00016712,2]
[396470097,1764977451323,-500.0,0.00016712,2]
[396470098,1764977451333,-500.0,0.00016712,2]
[396470099,1764977451342,-500.0,0.00016712,2]
[396470100,1764977451351,-500.0,0.00016712,2]
[396470101,1764977451360,-500.0,0.00016712,2]
[396470102,1764977451374,-500.0,0.00016712,2]
[396470103,1764977451383,-500.0,0.00016712,2]
[396470104,1764977451395,-658.23,0.00016712,2]
[396470105,1764977451404,-500.0,0.00016712,2]
[396470106,1764977451415,-500.0,0.00016712,2]
[396470107,1764977451424,-500.0,0.00016712,2]
[396470108,1764977451435,-500.0,0.00016712,2]
[396470109,1764977451447,-369.78689569,0.00016712,2]
[396470110,1764977451457,-548.93,0.00016712,2]
[396470111,1764977451467,-675.81,0.00016712,2]
[396470112,1764977451476,-151.0,0.00016712,2]
[396470113,1764977451486,-500.0,0.00016712,2]
[396470114,1764977451497,-500.0,0.00016712,2]
[396470115,1764977451506,-500.0,0.00016712,2]